fUST/lending_fUST_20250103
["ID","MTS","AMOUNT","RATE_DAILY","PERIOD"]
[347461364,1735836633468,-500.0,0.00019178,2]
[347461365,1735836633477,-500.0,0.00019178,2]
[347461366,1735836633487,-195.10596522,0.00019178,2]
[347461367,1735836633496,-502.0649413,0.00019178,2]
[347461368,1735836633506,-500.0,0.00019178,2]
[347461369,1735836633516,-500.0,0.00019178,2]
[347461370,1735836633525,-500.0,0.00019178,2]
[347461371,1735836633535,-500.0,0.00019178,2]
[347461372,1735836633544,-500.0,0.00019178,2]
[347461373,1735836633554,-500.0,0.00019178,2]
[347461374,1735836633563,-500.0,0.00019178,2]
[347461375,1735836633573,-500.0,0.00019178,2]
[347461376,1735836633582,-500.0,0.00019178,2]
[347461377,1735836633591,-500.0,0.00019178,2]
[347461378,1735836633601,-500.0,0.00019178,2]
[347461379,1735836633611,-500.0,0.00019178,2]
[347461380,1735836633620,-500.0,0.00019178,2]
[347461381,1735836633630,-500.0,0.00019178,2]
[347461382,1735836633639,-500.0,0.00019178,2]
[347461383,1735836633650,-500.0,0.00019178,2]
[347461384,1735836633659,-500.0,0.00019178,2]
[347461385,1735836633669,-500.0,0.00019178,2]
[347461386,1735836633678,-500.0,0.00019178,2]
[347461387,1735836633688,-547.51,0.00019178,2]
[347461388,1735836633697,-500.0,0.00019178,2]
[347461389,1735836633706,-500.0,0.00019178,2]
[347461390,1735836633715,-500.0,0.00019178,2]
[347461391,1735836633725,-500.0,0.00019178,2]
[347461392,1735836633735,-500.0,0.00019178,2]
[347461393,1735836633746,-539.03,0.00019178,2]
[347461394,1735836633755,-500.0,0.00019178,2]
[347461395,1735836633886,-500.0,0.00019178,2]
[347461396,1735836633897,-500.0,0.00019178,2]
[347461397,1735836633907,-500.0,0.00019178,2]
[347461398,1735836633917,-500.0,0.00019178,2]
[347461399,1735836633926,-150.43686423,0.00019178,2]
[347461400,1735836633936,-500.0,0.00019178,2]
[347461401,1735836633945,-500.0,0.00019178,2]
[347461402,1735836633955,-500.0,0.00019178,2]
[347461403,1735836633964,-500.0,0.00019178,2]
[347461404,1735836633974,-500.0,0.00019178,2]
[347461405,1735836633983,-500.0,0.00019178,2]
[347461406,1735836633992,-500.0,0.00019178,2]
[347461407,1735836634002,-537.20395258,0.00019178,2]
[347461408,1735836634011,-500.0,0.00019178,2]
[347461409,1735836634020,-500.0,0.00019178,2]
[347461410,1735836634029,-500.0,0.00019178,2]
[347461411,1735836634039,-500.0,0.00019178,2]
[347461412,1735836634049,-500.0,0.00019178,2]
[347461413,1735836634058,-500.0,0.00019178,2]
[347461414,1735836634067,-500.0,0.00019178,2]
[347461415,1735836634077,-500.0,0.00019178,2]
[347461416,1735836634086,-500.0,0.00019178,2]
[347461417,1735836634095,-500.0,0.00019178,2]
[347461418,1735836634104,-571.62760986,0.00019178,2]
[347461419,1735836634114,-500.0,0.00019178,2]
[347461420,1735836634123,-500.0,0.00019178,2]
[347461421,1735836634133,-518.21466965,0.00019178,2]
[347461422,1735836634142,-500.0,0.00019178,2]
[347461423,1735836634157,-500.0,0.00019178,2]
[347461424,1735836634166,-500.0,0.00019178,2]
[347461425,1735836634176,-410.76,0.00019178,2]
[347461426,1735836634185,-500.0,0.00019178,2]
[347461427,1735836634195,-500.0,0.00019178,2]
[347461428,1735836634205,-500.0,0.00019178,2]
[347461429,1735836634215,-500.0,0.00019178,2]
[347461430,1735836634225,-605.99,0.00019178,2]
[347461431,1735836634235,-500.0,0.00019178,2]
[347461432,1735836634244,-338.08480224,0.00019178,2]
[347461433,1735836634254,-500.0,0.00019178,2]
[347461434,1735836634264,-500.0,0.00019178,2]
[347461435,1735836634278,-500.0,0.00019178,2]
[347461436,1735836634290,-500.0,0.00019178,2]
[347461437,1735836634300,-258.90898006,0.00019178,2]
[347461438,1735836634310,-409.6916007,0.00019178,2]
[347461439,1735836634322,-500.0,0.00019178,2]
[347461440,1735836634331,-500.0,0.00019178,2]
[347461441,1735836634341,-644.7805712,0.00019178,2]
[347461442,1735836634351,-500.0,0.00019178,2]
[347461443,1735836634362,-500.0,0.00019178,2]
[347461444,1735836634372,-500.0,0.00019178,2]
[347461445,1735836634383,-500.0,0.00019178,2]
[347461446,1735836634392,-500.0,0.00019178,2]
[347461447,1735836634405,-500.0,0.00019178,2]
[347461448,1735836634415,-369.87883043,0.00019178,2]
[347461449,1735836634425,-500.0,0.00019178,2]
[347461450,1735836634436,-500.0,0.00019178,2]
[347461451,1735836634446,-492.50816509,0.00019178,2]
[347461452,1735836634457,-500.0,0.00019178,2]
[347461453,1735836634468,-500.0,0.00019178,2]
[347461454,1735836634478,-500.0,0.00019178,2]
[347461455,1735836634488,-500.0,0.00019178,2]
[347461456,1735836634497,-500.0,0.00019178,2]
[347461457,1735836634507,-500.0,0.00019178,2]
[347461458,1735836634516,-500.0,0.00019178,2]
[347461459,1735836634525,-500.0,0.00019178,2]
[347461460,1735836634539,-500.0,0.00019178,2]
[347461461,1735836634548,-188.0,0.00019178,2]
[347461462,1735836634558,-500.0,0.00019178,2]
[347461463,1735836634567,-500.0,0.00019178,2]
[347461464,1735836634577,-500.0,0.00019178,2]
[347461465,1735836634586,-500.0,0.00019178,2]
[347461466,1735836634596,-500.0,0.00019178,2]
[347461467,1735836634605,-500.0,0.00019178,2]
[347461468,1735836634615,-500.0,0.00019178,2]
[347461469,1735836634624,-500.0,0.00019178,2]
[347461470,1735836634634,-500.0,0.00019178,2]
[347461471,1735836634644,-500.0,0.00019178,2]
[347461472,1735836634658,-500.0,0.00019178,2]
[347461473,1735836634671,-241.34728052,0.00019178,2]
[347461474,1735836634680,-508.60259031,0.00019178,2]
[347461475,1735836634690,-500.0,0.00019178,2]
[347461476,1735836634699,-500.0,0.00019178,2]
[347461477,1735836634709,-500.0,0.00019178,2]
[347461478,1735836634718,-500.0,0.00019178,2]
[347461479,1735836634728,-500.0,0.00019178,2]
[347461480,1735836634737,-500.0,0.00019178,2]
[347461481,1735836634746,-500.0,0.00019178,2]
[347461482,1735836634755,-500.0,0.00019178,2]
[347461483,1735836634764,-500.0,0.00019178,2]
[347461484,1735836634773,-500.0,0.00019178,2]
[347461485,1735836634783,-500.0,0.00019178,2]
[347461486,1735836634792,-500.0,0.00019178,2]
[347461487,1735836634801,-500.0,0.00019178,2]
[347461488,1735836634811,-543.2916063,0.00019178,2]
[347461489,1735836634820,-500.0,0.00019178,2]
[347461490,1735836634829,-500.0,0.00019178,2]
[347461491,1735836634838,-500.0,0.00019178,2]
[347461492,1735836634847,-500.0,0.00019178,2]
[347461493,1735836634857,-500.0,0.00019178,2]
[347461494,1735836634866,-500.0,0.00019178,2]
[347461495,1735836634876,-2747.3,0.00019178,2]
[347461496,1735836634886,-2747.3,0.00019178,2]
[347461497,1735836634895,-2747.3,0.00019178,2]
[347461498,1735836634907,-500.0,0.00019178,2]
[347461499,1735836634917,-2747.3,0.00019178,2]
[347461500,1735836634927,-500.0,0.00019178,2]
[347461501,1735836634936,-500.0,0.00019178,2]
[347461502,1735836634946,-2747.3,0.00019178,2]
[347461503,1735836634955,-2747.3,0.00019178,2]
[347461504,1735836634964,-500.0,0.00019178,2]
[347461505,1735836634973,-500.0,0.00019178,2]
[347461506,1735836634982,-500.0,0.00019178,2]
[347461507,1735836634992,-2114.01,0.00019178,2]
[347461508,1735836635001,-500.0,0.00019178,2]
[347461509,1735836635010,-2996.04,0.00019178,2]
[347461510,1735836635019,-993.65,0.00019178,2]
[347461511,1735836635028,-500.0,0.00019178,2]
[347461512,1735836635038,-500.0,0.00019178,2]
[347461513,1735836635047,-507.26667579,0.00019178,2]
[347461514,1735836635056,-500.0,0.00019178,2]
[347461515,1735836635067,-500.0,0.00019178,2]
[347461516,1735836635076,-500.0,0.00019178,2]
[347461517,1735836635086,-500.0,0.00019178,2]
[347461518,1735836635095,-599.72,0.00019178,2]
[347461519,1735836635105,-500.0,0.00019178,2]
[347461520,1735836635114,-500.0,0.00019178,2]
[347461521,1735836635123,-500.0,0.00019178,2]
[347461522,1735836635132,-500.0,0.00019178,2]
[347461523,1735836635143,-527.71,0.00019178,2]
[347461524,1735836635155,-500.0,0.00019178,2]
[347461525,1735836635165,-500.0,0.00019178,2]
[347461526,1735836635175,-437.84131832,0.00019178,2]
[347461527,1735836635185,-500.0,0.00019178,2]
[347461528,1735836635194,-500.0,0.00019178,2]
[347461529,1735836635204,-570.43,0.00019178,2]
[347461530,1735836635213,-500.0,0.00019178,2]
[347461531,1735836635223,-650.81,0.00019178,2]
[347461532,1735836635233,-500.0,0.00019178,2]
[347461533,1735836635243,-500.0,0.00019178,2]
[347461534,1735836635252,-500.0,0.00019178,2]
[347461535,1735836635262,-500.0,0.00019178,2]
[347461536,1735836635272,-500.0,0.00019178,2]
[347461537,1735836635285,-500.0,0.00019178,2]
[347461538,1735836635294,-500.0,0.00019178,2]
[347461539,1735836635303,-500.0,0.00019178,2]
[347461540,1735836635312,-500.0,0.00019178,2]
[347461541,1735836635322,-500.0,0.00019178,2]
[347461542,1735836635331,-500.0,0.00019178,2]
[347461543,1735836635340,-500.0,0.00019178,2]
[347461544,1735836635350,-500.0,0.00019178,2]
[347461545,1735836635360,-500.0,0.00019178,2]
[347461546,1735836635369,-633.22,0.00019178,2]
[347461547,1735836635378,-500.0,0.00019178,2]
[347461548,1735836635388,-506.07667015,0.00019178,2]
[347461549,1735836635399,-9414.99,0.00019178,2]
[347461550,1735836635410,-2997.38,0.00019178,2]
[347461551,1735836635421,-500.0,0.00019178,2]
[347461552,1735836635431,-500.0,0.00019178,2]
[347461553,1735836635442,-519.05136834,0.00019178,2]
[347461554,1735836635452,-632.5,0.00019178,2]
[347461555,1735836635461,-910.72,0.00019178,2]
[347461556,1735836635470,-588.93,0.00019178,2]
[347461557,1735836635480,-163.39823313,0.00019178,2]
[347461558,1735836635490,-500.0,0.00019178,2]
[347461559,1735836635499,-500.0,0.00019178,2]
[347461560,1735836635509,-500.0,0.00019178,2]
[347461561,1735836635519,-500.0,0.00019178,2]
[347461562,1735836635528,-500.0,0.00019178,2]
[347461563,1735836635538,-183.72,0.00019178,2]
[347461564,1735836635547,-500.0,0.00019178,2]
[347461565,1735836635556,-500.0,0.00019178,2]
[347461566,1735836635566,-500.0,0.00019178,2]
[347461567,1735836635575,-500.0,0.00019178,2]
[347461568,1735836635584,-500.0,0.00019178,2]
[347461569,1735836635594,-1870.47,0.00019178,2]
[347461570,1735836635603,-500.0,0.00019178,2]
[347461571,1735836635612,-500.0,0.00019178,2]
[347461572,1735836635621,-250.0,0.00019272,2]
[347461573,1735836635630,-384.45461746,0.00019352,2]
[347461574,1735836635640,-2747.3,0.00019448,3]
[347461575,1735836635649,-2747.3,0.00019448,3]
[347461576,1735836635658,-2747.3,0.0001945,3]
[347461577,1735836635667,-2747.3,0.0001945,3]
[347461578,1735836635676,-2747.3,0.0001945,3]
[347461579,1735836635685,-2747.3,0.0001945,3]
[347461580,1735836635696,-2747.3,0.0001945,3]
[347461581,1735836635705,-2747.3,0.0001945,3]
[347461582,1735836635715,-2747.3,0.00019451,3]
[347461583,1735836635724,-2747.3,0.00019451,3]
[347461584,1735836635733,-161.46,0.00019452,3]
[347461585,1735836635742,-502.24,0.00019452,3]
[347461586,1735836635752,-500.0,0.00019452,3]
[347461587,1735836635763,-505.03509409,0.00019452,3]
[347461588,1735836635773,-647.06,0.00019452,3]
[347461589,1735836635782,-209.83,0.00019452,3]
[347461590,1735836635792,-500.0,0.00019452,3]
[347461591,1735836635802,-500.0,0.00019452,3]
[347461592,1735836635812,-500.0,0.00019452,3]
[347461593,1735836635824,-279.41,0.00019452,3]
[347461594,1735836635834,-500.0,0.00019452,3]
[347461595,1735836635844,-153.4,0.00019452,3]
[347461596,1735836635853,-500.0,0.00019452,3]
[347461597,1735836635862,-500.0,0.00019452,3]
[347461598,1735836635872,-500.0,0.00019452,3]
[347461599,1735836635881,-500.0,0.00019452,3]
[347461600,1735836635890,-500.0,0.00019452,3]
[347461601,1735836635900,-502.35223765,0.00019452,3]
[347461602,1735836635909,-500.0,0.00019452,3]
[347461603,1735836635919,-500.0,0.00019452,3]
[347461604,1735836635928,-500.0,0.00019452,3]
[347461605,1735836635937,-500.0,0.00019452,3]
[347461606,1735836635946,-188.0,0.00019452,2]
[347461607,1735836635955,-520.13,0.00019452,3]
[347461608,1735836635964,-500.31838723,0.00019452,3]
[347461609,1735836635973,-463.37,0.00019452,3]
[347461610,1735836635982,-500.0,0.00019452,3]
[347461611,1735836635991,-500.0,0.00019452,3]
[347461612,1735836636001,-500.0,0.00019452,3]
[347461613,1735836636010,-500.0,0.00019452,3]
[347461614,1735836636019,-500.0,0.00019452,3]
[347461615,1735836636029,-2114.01,0.00019452,3]
[347461616,1735836636038,-500.0,0.00019452,3]
[347461617,1735836636047,-2996.04,0.00019452,3]
[347461618,1735836636057,-993.65,0.00019452,3]
[347461619,1735836636066,-500.0,0.00019452,3]
[347461620,1735836636076,-500.0,0.00019452,3]
[347461621,1735836636085,-500.0,0.00019452,2]
[347461622,1735836636096,-544.99,0.00019452,3]
[347461623,1735836636106,-642.17,0.00019452,3]
[347461624,1735836636115,-570.42,0.00019452,3]
[347461625,1735836636126,-524.57,0.00019452,3]
[347461626,1735836636135,-650.81,0.00019452,3]
[347461627,1735836636145,-500.0,0.00019452,3]
[347461628,1735836636156,-500.0,0.00019452,3]
[347461629,1735836636166,-500.0,0.00019452,3]
[347461630,1735836636176,-9414.99,0.00019452,3]
[347461631,1735836636186,-2997.38,0.00019452,3]
[347461632,1735836636196,-910.72,0.00019452,3]
[347461633,1735836636205,-588.93,0.00019452,3]
[347461634,1735836636215,-500.0,0.00019452,3]
[347461635,1735836636224,-500.0,0.00019452,3]
[347461636,1735836636234,-500.0,0.00019452,3]
[347461637,1735836636243,-500.0,0.00019452,3]
[347461638,1735836636252,-500.0,0.00019452,3]
[347461639,1735836636261,-1870.47,0.00019452,3]
[347461640,1735836636272,-500.0,0.00019452,3]
[347461641,1735836636285,-500.0,0.00019473,2]
[347461642,1735836636294,-163.82192982,0.00019654,2]
[347461643,1735836636303,-668.71409009,0.00019721,2]
[347461644,1735836636399,-331.28590991,0.00019721,2]
[347461645,1735836636409,-2747.3,0.00019724,3]
[347461646,1735836636419,-2747.3,0.00019724,3]
[347461647,1735836636428,-2747.3,0.00019724,3]
[347461648,1735836636437,-2747.3,0.00019725,3]
[347461649,1735836636447,-2747.3,0.00019725,3]
[347461650,1735836636456,-829.19840049,0.00019725,3]
[347461651,1735836636476,-1918.10159951,0.00019725,3]
[347461652,1735836636486,-2747.3,0.00019725,3]
[347461653,1735836636495,-2747.34288484,0.00019725,3]
[347461654,1735836636505,-500.0,0.00019726,3]
[347461655,1735836636514,-500.0,0.00019726,3]
[347461656,1735836636523,-255.69,0.00019726,3]
[347461657,1735836636533,-236.91,0.00019726,3]
[347461658,1735836636542,-508.05,0.00019726,3]
[347461659,1735836636552,-500.0,0.00019726,3]
[347461660,1735836636660,-500.0,0.00019726,3]
[347461661,1735836636670,-500.0,0.00019726,3]
[347461662,1735836636680,-532.2730238,0.00019726,3]
[347461663,1735836636689,-500.0,0.00019726,3]
[347461664,1735836636699,-500.0,0.00019726,3]
[347461665,1735836636708,-500.0,0.00019726,3]
[347461666,1735836636717,-500.0,0.00019726,3]
[347461667,1735836636726,-500.0,0.00019726,3]
[347461668,1735836636736,-500.0,0.00019726,3]
[347461669,1735836636746,-500.0,0.00019726,3]
[347461670,1735836636755,-500.0,0.00019726,3]
[347461671,1735836636764,-1967.24254223,0.00019726,3]
[347461672,1735836636777,-146.76745777,0.00019726,3]
[347461673,1735836636786,-500.0,0.00019726,3]
[347461674,1735836636797,-2996.04,0.00019726,3]
[347461675,1735836636806,-993.65,0.00019726,3]
[347461676,1735836636817,-500.0,0.00019726,3]
[347461677,1735836636826,-500.0,0.00019726,3]
[347461678,1735836636836,-500.0,0.00019726,2]
[347461679,1735836636846,-650.81,0.00019726,3]
[347461680,1735836636855,-500.0,0.00019726,3]
[347461681,1735836636865,-500.0,0.00019726,3]
[347461682,1735836636875,-500.0,0.00019726,3]
[347461683,1735836636885,-147.77768881,0.00019726,3]
[347461684,1735836636897,-9267.21231119,0.00019726,3]
[347461685,1735836636907,-2997.38,0.00019726,3]
[347461686,1735836636917,-910.72,0.00019726,3]
[347461687,1735836636926,-588.93,0.00019726,3]
[347461688,1735836636938,-500.0,0.00019726,3]
[347461689,1735836636947,-500.0,0.00019726,3]
[347461690,1735836636956,-483.12,0.00019726,3]
[347461691,1735836636966,-1870.47,0.00019726,3]
[347461692,1735836636975,-500.0,0.00019726,3]
[347461693,1735836636985,-500.0,0.00019855,2]
[347461694,1735836636994,-500.0,0.00019855,2]
[347461695,1735836637004,-500.0,0.00019855,2]
[347461696,1735836637013,-500.0,0.00019855,2]
[347461697,1735836637022,-502.41149017,0.00019878,2]
[347461698,1735836637031,-500.0,0.00019878,2]
[347461699,1735836637041,-580.62472155,0.000199,2]
[347461700,1735836637052,-500.0,0.0002,3]
[347461701,1735836637061,-500.0,0.0002,3]
[347461702,1735836637070,-500.0,0.0002,3]
[347461703,1735836637081,-500.0,0.0002,3]
[347461704,1735836637091,-500.0,0.0002,3]
[347461705,1735836637100,-623.74,0.0002,3]
[347461706,1735836637121,-500.0,0.0002,3]
[347461707,1735836637131,-154.1705807,0.0002,3]
[347461708,1735836637140,-500.0,0.0002,3]
[347461709,1735836637152,-543.36,0.0002,3]
[347461710,1735836637164,-166.97,0.0002,3]
[347461711,1735836637173,-237.49,0.0002,3]
[347461712,1735836637184,-2114.01,0.0002,3]
[347461713,1735836637194,-500.0,0.0002,3]
[347461714,1735836637204,-2996.04,0.0002,3]
[347461715,1735836637214,-993.65,0.0002,3]
[347461716,1735836637224,-500.0,0.0002,3]
[347461717,1735836637235,-500.0,0.0002,3]
[347461718,1735836637244,-500.0,0.0002,2]
[347461719,1735836637254,-650.81,0.0002,3]
[347461720,1735836637264,-500.0,0.0002,3]
[347461721,1735836637276,-500.0,0.0002,3]
[347461722,1735836637287,-500.0,0.0002,3]
[347461723,1735836637296,-9414.99,0.0002,3]
[347461724,1735836637306,-2997.38,0.0002,3]
[347461725,1735836637316,-910.72,0.0002,3]
[347461726,1735836637326,-588.93,0.0002,3]
[347461727,1735836637336,-500.0,0.0002,3]
[347461728,1735836637345,-500.0,0.0002,3]
[347461729,1735836637355,-1870.47,0.0002,3]
[347461730,1735836637365,-598.25,0.0002,3]
[347461731,1735836637375,-580.62472144,0.00020058,2]
[347461732,1735836637385,-500.0,0.00020111,2]
[347461733,1735836637394,-500.35136097,0.00020111,2]
[347461734,1735836637407,-384.45461743,0.00020147,2]
[347461735,1735836637416,-580.62472144,0.00020216,2]
[347461736,1735836637426,-163.82192982,0.00020229,2]
[347461737,1735836637435,-500.0,0.00020273,3]
[347461738,1735836637447,-500.0,0.00020273,3]
[347461739,1735836637456,-500.0,0.00020273,3]
[347461740,1735836637466,-303.17,0.00020273,3]
[347461741,1735836637478,-500.0,0.00020273,3]
[347461742,1735836637488,-462.25128245,0.00020273,3]
[347461743,1735836637498,-2114.01,0.00020273,3]
[347461744,1735836637507,-500.0,0.00020273,3]
[347461745,1735836637517,-2996.04,0.00020273,3]
[347461746,1735836637528,-993.65,0.00020273,3]
[347461747,1735836637538,-500.0,0.00020273,3]
[347461748,1735836637547,-500.0,0.00020273,3]
[347461749,1735836637557,-500.0,0.00020273,2]
[347461750,1735836637568,-499.0,0.00020273,2]
[347461751,1735836637577,-650.81,0.00020273,3]
[347461752,1735836637587,-500.0,0.00020273,3]
[347461753,1735836637596,-500.0,0.00020273,3]
[347461754,1735836637606,-500.0,0.00020273,3]
[347461755,1735836637615,-9414.99,0.00020273,3]
[347461756,1735836637625,-2997.38,0.00020273,3]
[347461757,1735836637635,-910.72,0.00020273,3]
[347461758,1735836637644,-588.93,0.00020273,3]
[347461759,1735836637655,-500.0,0.00020273,3]
[347461760,1735836637664,-500.0,0.00020273,3]
[347461761,1735836637674,-1870.47,0.00020273,3]
[347461762,1735836637683,-580.62472144,0.00020374,2]
[347461763,1735836637693,-1000.0,0.00020403,2]
[347461764,1735836637703,-1000.0,0.00020403,2]
[347461765,1735836637712,-500.0,0.00020426,2]
[347461766,1735836637722,-580.62472144,0.00020532,2]
[347461767,1735836637732,-500.0,0.00020546,3]
[347461768,1735836637742,-1622.5,0.00020546,3]
[347461769,1735836637752,-1622.5,0.00020546,3]
[347461770,1735836637762,-500.0,0.00020546,3]
[347461771,1735836637771,-500.0,0.00020546,3]
[347461772,1735836637781,-540.45,0.00020546,3]
[347461773,1735836637790,-739.55,0.00020546,3]
[347461774,1735836637800,-1693.16,0.00020546,3]
[347461775,1735836637809,-500.0,0.00020547,3]
[347461776,1735836637819,-500.0,0.00020547,3]
[347461777,1735836637828,-500.0,0.00020547,3]
[347461778,1735836637837,-475.83,0.00020547,3]
[347461779,1735836637847,-2114.01,0.00020547,3]
[347461780,1735836637856,-422.58,0.00020547,3]
[347461781,1735836637867,-2996.04,0.00020547,3]
[347461782,1735836637877,-993.65,0.00020547,3]
[347461783,1735836637887,-434.36,0.00020547,3]
[347461784,1735836637896,-500.0,0.00020547,3]
[347461785,1735836637909,-500.0,0.00020547,2]
[347461786,1735836637920,-650.81,0.00020547,3]
[347461788,1735836637929,-500.0,0.00020547,3]
[347461789,1735836637939,-500.0,0.00020547,3]
[347461790,1735836637948,-500.0,0.00020547,3]
[347461791,1735836637958,-9414.99,0.00020547,3]
[347461792,1735836637972,-2997.38,0.00020547,3]
[347461793,1735836637981,-910.72,0.00020547,3]
[347461794,1735836637991,-588.93,0.00020547,3]
[347461795,1735836638000,-500.0,0.00020547,3]
[347461796,1735836638010,-500.0,0.00020547,3]
[347461797,1735836638020,-1870.47,0.00020547,3]
[347461798,1735836638029,-593.2692456,0.00020654,2]
[347461800,1735836638039,-500.0,0.00020654,2]
[347461801,1735836638048,-261.43942217,0.00020654,2]
[347461802,1735836638057,-500.0,0.00020655,2]
[347461803,1735836638066,-500.51599442,0.00020655,2]
[347461804,1735836638076,-580.62472144,0.00020689,2]
[347461805,1735836638087,-1020.83422899,0.00020722,2]
[347461806,1735836638097,-151.0,0.000208,4]
[347461807,1735836638106,-163.82192982,0.00020805,2]
[347461808,1735836638116,-438.16,0.0002082,3]
[347461809,1735836638126,-1622.5,0.0002082,3]
[347461810,1735836638135,-739.55,0.0002082,3]
[347461811,1735836638145,-1693.16,0.0002082,3]
[347461812,1735836638158,-500.0,0.00020821,3]
[347461814,1735836638168,-500.0,0.00020821,3]
[347461815,1735836638177,-500.0,0.00020821,3]
[347461816,1735836638187,-2114.01,0.00020821,3]
[347461817,1735836638197,-2996.04,0.00020821,3]
[347461818,1735836638206,-993.65,0.00020821,3]
[347461819,1735836638216,-500.0,0.00020821,3]
[347461821,1735836638226,-500.0,0.00020821,2]
[347461823,1735836638236,-650.81,0.00020821,3]
[347461824,1735836638246,-500.0,0.00020821,3]
[347461826,1735836638256,-500.0,0.00020821,3]
[347461827,1735836638265,-500.0,0.00020821,3]
[347461829,1735836638276,-9414.99,0.00020821,3]
[347461830,1735836638288,-2997.38,0.00020821,3]
[347461831,1735836638298,-910.72,0.00020821,3]
[347461832,1735836638309,-588.93,0.00020821,3]
[347461833,1735836638319,-500.0,0.00020821,3]
[347461834,1735836638328,-500.0,0.00020821,3]
[347461835,1735836638338,-1870.47,0.00020821,3]
[347461836,1735836638348,-580.62472144,0.00020847,2]
[347461837,1735836638360,-420.0,0.00020898,2]
[347461838,1735836638371,-384.45461743,0.00020942,2]
[347461840,1735836638380,-170.26107578,0.00020943,2]
[347461841,1735836638390,-580.62472144,0.00021005,2]
[347461842,1735836638400,-1622.5,0.00021094,3]
[347461843,1735836638412,-1622.5,0.00021094,3]
[347461844,1735836638421,-739.55,0.00021094,3]
[347461845,1735836638431,-1693.16,0.00021094,3]
[347461846,1735836638441,-500.0,0.00021095,3]
[347461847,1735836638450,-500.0,0.00021095,3]
[347461848,1735836638460,-500.0,0.00021095,3]
[347461849,1735836638470,-2114.01,0.00021095,3]
[347461850,1735836638480,-2996.04,0.00021095,3]
[347461851,1735836638490,-993.65,0.00021095,3]
[347461852,1735836638500,-256.68,0.00021095,3]
[347461853,1735836638510,-500.0,0.00021095,2]
[347461854,1735836638519,-650.81,0.00021095,3]
[347461855,1735836638529,-500.0,0.00021095,3]
[347461856,1735836638539,-500.0,0.00021095,3]
[347461857,1735836638548,-235.88,0.00021095,3]
[347461859,1735836638558,-9414.99,0.00021095,3]
[347461860,1735836638567,-2997.38,0.00021095,3]
[347461862,1735836638577,-910.72,0.00021095,3]
[347461863,1735836638587,-588.93,0.00021095,3]
[347461865,1735836638596,-500.0,0.00021095,3]
[347461866,1735836638606,-257.94,0.00021095,3]
[347461867,1735836638615,-1870.47,0.00021095,3]
[347461868,1735836638625,-151.0,0.000211,4]
[347461869,1735836638635,-12480.04454468,0.00021132,2]
[347461870,1735836638645,-580.62472144,0.00021163,2]
[347461871,1735836638657,-151.0,0.000212,4]
[347461872,1735836638666,-182.201773,0.00021258,2]
[347461873,1735836638676,-465.12663344,0.00021285,2]
[347461874,1735836638686,-580.62472144,0.00021321,2]